[Event "Titled Tuesday Blitz December 13 Late 2022"]
[White "Cruz, William Ferreira Da"]
[Black "Arbunic Castro, Giovanna"]
[WhiteFideId "2118050"]
[BlackFideId "3400549"]
[WhiteElo "2223"]
[BlackElo "1952"]
[Result "1-0"]
[Round "04"]
[TimeControl "180+1"]
[Date "2022.12.14"]
[WhiteClock "0:00:33"]
[BlackClock "0:00:10"]

1. d4 {[%clk 0:02:41]}  Nf6 {[%clk 0:02:57]} 2. c4 {[%clk 0:02:38]}  g6 {[%clk 0:02:56]} 3. Nc3 {[%clk 0:02:39]}  Bg7 {[%clk 0:02:56]} 4. e4 {[%clk 0:02:39]}  d6 {[%clk 0:02:55]} 5. Nf3 {[%clk 0:02:40]}  O-O {[%clk 0:02:55]} 6. Be2 {[%clk 0:02:40]}  e5 {[%clk 0:02:55]} 7. O-O {[%clk 0:02:41]}  Nc6 {[%clk 0:02:47]} 8. d5 {[%clk 0:02:41]}  Ne7 {[%clk 0:02:46]} 9. Ne1 {[%clk 0:02:42]}  Ne8 {[%clk 0:02:45]} 10. Be3 {[%clk 0:02:42]}  f5 {[%clk 0:02:45]} 11. f3 {[%clk 0:02:43]}  Nf6 {[%clk 0:02:41]} 12. c5 {[%clk 0:02:41]}  Bd7 {[%clk 0:02:26]} 13. Nd3 {[%clk 0:02:25]}  f4 {[%clk 0:02:21]} 14. Bf2 {[%clk 0:02:24]}  g5 {[%clk 0:02:21]} 15. c6 {[%clk 0:02:23]}  bxc6 {[%clk 0:02:11]} 16. dxc6 {[%clk 0:02:23]}  Bxc6 {[%clk 0:02:11]} 17. Nb4 {[%clk 0:02:23]}  Bd7 {[%clk 0:02:09]} 18. Rc1 {[%clk 0:02:12]}  Qe8 {[%clk 0:02:07]} 19. Nbd5 {[%clk 0:02:09]}  Nexd5 {[%clk 0:02:05]} 20. Nxd5 {[%clk 0:02:08]}  Nxd5 {[%clk 0:02:04]} 21. Qxd5+ {[%clk 0:02:09]}  Be6 {[%clk 0:02:03]} 22. Qa5 {[%clk 0:02:09]}  c5 {[%clk 0:01:55]} 23. Rfd1 {[%clk 0:02:09]}  Rd8 {[%clk 0:01:51]} 24. Qxa7 {[%clk 0:02:07]}  Qg6 {[%clk 0:01:49]} 25. h3 {[%clk 0:02:04]}  h5 {[%clk 0:01:48]} 26. Qc7 {[%clk 0:02:02]}  Rd7 {[%clk 0:01:45]} 27. Qc6 {[%clk 0:02:02]}  Rfd8 {[%clk 0:01:38]} 28. Bc4 {[%clk 0:01:50]}  Bf8 {[%clk 0:01:25]} 29. Bxe6+ {[%clk 0:01:48]}  Qxe6 {[%clk 0:01:24]} 30. Qd5 {[%clk 0:01:48]}  Kf7 {[%clk 0:01:22]} 31. a4 {[%clk 0:01:45]}  Qxd5 {[%clk 0:01:20]} 32. Rxd5 {[%clk 0:01:44]}  Rb8 {[%clk 0:01:11]} 33. Rd2 {[%clk 0:01:40]}  Ke6 {[%clk 0:01:01]} 34. Ra1 {[%clk 0:01:37]}  Ra7 {[%clk 0:00:53]} 35. Ra2 {[%clk 0:01:28]}  Rb4 {[%clk 0:00:50]} 36. a5 {[%clk 0:01:21]}  Rb5 {[%clk 0:00:48]} 37. Be1 {[%clk 0:01:21]}  Rbxa5 {[%clk 0:00:45]} 38. Rxd6+ {[%clk 0:01:19]}  Bxd6 {[%clk 0:00:38]} 39. Rxa5 {[%clk 0:01:19]}  Rxa5 {[%clk 0:00:35]} 40. Bxa5 {[%clk 0:01:19]}  c4 {[%clk 0:00:35]} 41. Kf1 {[%clk 0:01:17]}  Bc5 {[%clk 0:00:34]} 42. Ke2 {[%clk 0:01:17]}  Bd4 {[%clk 0:00:34]} 43. Bd8 {[%clk 0:00:54]}  Bxb2 {[%clk 0:00:30]} 44. Bxg5 {[%clk 0:00:54]}  Kd6 {[%clk 0:00:19]} 45. Kd2 {[%clk 0:00:53]}  Kc5 {[%clk 0:00:18]} 46. Kc2 {[%clk 0:00:51]}  Bd4 {[%clk 0:00:18]} 47. Bh4 {[%clk 0:00:49]}  Kb4 {[%clk 0:00:17]} 48. Be1+ {[%clk 0:00:48]}  Ka3 {[%clk 0:00:17]} 49. Bc3 {[%clk 0:00:45]}  Ka4 {[%clk 0:00:12]} 50. Be1 {[%clk 0:00:40]}  Kb5 {[%clk 0:00:12]} 51. g4 {[%clk 0:00:37]}  Kc5 {[%clk 0:00:11]} 52. gxh5 {[%clk 0:00:33]}  Kd6 {[%clk 0:00:10]} 53. h6 {[%clk 0:00:33]} 1-0


[Site "https://www.chess.com"]

[Event "Titled Tuesday Blitz December 13 Late 2022"]
[White "Curtis, John"]
[Black "Winterberg, Lukas"]
[WhiteFideId "3200256"]
[BlackFideId "24622702"]
[WhiteElo "2203"]
[BlackElo "2350"]
[Result "0-1"]
[Round "04"]
[TimeControl "180+1"]
[Date "2022.12.14"]
[WhiteClock "0:00:01"]
[BlackClock "0:01:33"]

1. e4 {[%clk 0:03:00]}  e6 {[%clk 0:02:51]} 2. d4 {[%clk 0:03:00]}  d5 {[%clk 0:02:52]} 3. exd5 {[%clk 0:02:59]}  exd5 {[%clk 0:02:52]} 4. c4 {[%clk 0:02:59]}  Bb4+ {[%clk 0:02:51]} 5. Bd2 {[%clk 0:02:58]}  Bxd2+ {[%clk 0:02:50]} 6. Qxd2 {[%clk 0:02:59]}  Nf6 {[%clk 0:02:50]} 7. cxd5 {[%clk 0:02:49]}  O-O {[%clk 0:02:45]} 8. Nc3 {[%clk 0:02:47]}  Nxd5 {[%clk 0:02:45]} 9. Be2 {[%clk 0:02:43]}  Re8 {[%clk 0:02:42]} 10. Nf3 {[%clk 0:02:33]}  Nc6 {[%clk 0:02:24]} 11. h3 {[%clk 0:01:51]}  Nxc3 {[%clk 0:02:15]} 12. bxc3 {[%clk 0:01:50]}  Qe7 {[%clk 0:02:15]} 13. O-O {[%clk 0:01:49]}  Bxh3 {[%clk 0:02:10]} 14. Rfe1 {[%clk 0:01:21]}  Bd7 {[%clk 0:01:58]} 15. Bc4 {[%clk 0:00:41]}  Qf6 {[%clk 0:01:56]} 16. Ne5 {[%clk 0:00:22]}  Nxe5 {[%clk 0:01:47]} 17. dxe5 {[%clk 0:00:22]}  Qe7 {[%clk 0:01:42]} 18. Rab1 {[%clk 0:00:14]}  Rad8 {[%clk 0:01:36]} 19. Qe3 {[%clk 0:00:12]}  b6 {[%clk 0:01:35]} 20. Rbd1 {[%clk 0:00:03]}  Be6 {[%clk 0:01:33]} 21. Rxd8 {[%clk 0:00:02]}  Rxd8 {[%clk 0:01:34]} 22. Bxe6 {[%clk 0:00:02]}  Qxe6 {[%clk 0:01:35]} 23. Qe2 {[%clk 0:00:02]}  h6 {[%clk 0:01:35]} 24. c4 {[%clk 0:00:01]}  Rd4 {[%clk 0:01:34]} 25. Rc1 {[%clk 0:00:01]}  c5 {[%clk 0:01:33]} 0-1


[Site "https://www.chess.com"]

[Event "Titled Tuesday Blitz December 13 Late 2022"]
[White "Danielyan, Vahe"]
[Black "Pasti, Aron"]
[WhiteFideId "13304828"]
[BlackFideId "785857"]
[WhiteElo "2423"]
[BlackElo "2250"]
[Result "0-1"]
[Round "04"]
[TimeControl "180+1"]
[Date "2022.12.14"]
[WhiteClock "0:02:12"]
[BlackClock "0:00:47"]

1. d4 {[%clk 0:02:59]}  Nf6 {[%clk 0:02:58]} 2. c4 {[%clk 0:03:00]}  e6 {[%clk 0:02:58]} 3. Bf4 {[%clk 0:03:00]}  d5 {[%clk 0:02:58]} 4. cxd5 {[%clk 0:02:59]}  exd5 {[%clk 0:02:53]} 5. e3 {[%clk 0:03:00]}  c6 {[%clk 0:02:52]} 6. Bd3 {[%clk 0:03:00]}  Bd6 {[%clk 0:02:52]} 7. Ne2 {[%clk 0:03:01]}  O-O {[%clk 0:02:51]} 8. O-O {[%clk 0:03:00]}  h6 {[%clk 0:02:51]} 9. Nbc3 {[%clk 0:02:59]}  Be6 {[%clk 0:02:48]} 10. Qc2 {[%clk 0:02:58]}  Qe7 {[%clk 0:02:43]} 11. Rab1 {[%clk 0:02:57]}  Nbd7 {[%clk 0:02:41]} 12. Bxd6 {[%clk 0:02:57]}  Qxd6 {[%clk 0:02:41]} 13. b4 {[%clk 0:02:58]}  a6 {[%clk 0:02:39]} 14. h3 {[%clk 0:02:58]}  b5 {[%clk 0:02:34]} 15. Rfc1 {[%clk 0:02:55]}  Nb6 {[%clk 0:02:34]} 16. Nf4 {[%clk 0:02:51]}  Nc4 {[%clk 0:02:25]} 17. Bxc4 {[%clk 0:02:52]}  bxc4 {[%clk 0:02:26]} 18. a4 {[%clk 0:02:51]}  Rfb8 {[%clk 0:02:20]} 19. Qb2 {[%clk 0:02:51]}  Bf5 {[%clk 0:02:20]} 20. Ra1 {[%clk 0:02:51]}  Rxb4 {[%clk 0:02:19]} 21. Qa3 {[%clk 0:02:48]}  a5 {[%clk 0:02:18]} 22. Nfe2 {[%clk 0:02:34]}  Rab8 {[%clk 0:02:14]} 23. Ng3 {[%clk 0:02:33]}  Bd3 {[%clk 0:02:10]} 24. Rd1 {[%clk 0:02:30]}  Qc7 {[%clk 0:02:04]} 25. Rac1 {[%clk 0:02:28]}  h5 {[%clk 0:01:54]} 26. Nb5 {[%clk 0:02:24]}  cxb5 {[%clk 0:01:49]} 27. Rxd3 {[%clk 0:02:22]}  Rxa4 {[%clk 0:01:48]} 28. Qc3 {[%clk 0:02:22]}  b4 {[%clk 0:01:46]} 29. Qb2 {[%clk 0:02:21]}  c3 {[%clk 0:01:39]} 30. Qc2 {[%clk 0:02:19]}  Ra3 {[%clk 0:01:16]} 31. Qe2 {[%clk 0:02:19]}  g6 {[%clk 0:01:10]} 32. e4 {[%clk 0:02:19]}  dxe4 {[%clk 0:01:09]} 33. Nxe4 {[%clk 0:02:20]}  Nxe4 {[%clk 0:01:09]} 34. Qxe4 {[%clk 0:02:21]}  Ra2 {[%clk 0:01:02]} 35. d5 {[%clk 0:02:21]}  Qd6 {[%clk 0:00:56]} 36. Qc4 {[%clk 0:02:18]}  Rb2 {[%clk 0:00:52]} 37. Qc6 {[%clk 0:02:17]}  Qxc6 {[%clk 0:00:50]} 38. dxc6 {[%clk 0:02:18]}  Rc8 {[%clk 0:00:50]} 39. Rd6 {[%clk 0:02:17]}  c2 {[%clk 0:00:49]} 40. Kh2 {[%clk 0:02:16]}  b3 {[%clk 0:00:49]} 41. Re1 {[%clk 0:02:12]}  Rb1 {[%clk 0:00:47]} 0-1


[Site "https://www.chess.com"]

[Event "Titled Tuesday Blitz December 13 Late 2022"]
[White "Domingo Nunez, Alejandro"]
[Black "Pein, Jonathan"]
[WhiteFideId "22245561"]
[BlackFideId "417092"]
[WhiteElo "2242"]
[BlackElo "2225"]
[Result "0-1"]
[Round "04"]
[TimeControl "180+1"]
[Date "2022.12.14"]
[WhiteClock "0:00:04"]
[BlackClock "0:00:09"]

1. e4 {[%clk 0:03:00]}  e5 {[%clk 0:02:59]} 2. Nf3 {[%clk 0:03:00]}  d6 {[%clk 0:03:00]} 3. Bc4 {[%clk 0:03:01]}  Nf6 {[%clk 0:03:00]} 4. Nc3 {[%clk 0:03:02]}  g6 {[%clk 0:03:00]} 5. O-O {[%clk 0:03:01]}  Bg7 {[%clk 0:03:00]} 6. d4 {[%clk 0:03:00]}  exd4 {[%clk 0:03:01]} 7. Nxd4 {[%clk 0:02:59]}  O-O {[%clk 0:03:02]} 8. h3 {[%clk 0:02:58]}  Re8 {[%clk 0:03:02]} 9. Re1 {[%clk 0:02:58]}  Nc6 {[%clk 0:02:59]} 10. Nb3 {[%clk 0:02:54]}  a5 {[%clk 0:02:53]} 11. Bb5 {[%clk 0:02:49]}  Bd7 {[%clk 0:02:52]} 12. f4 {[%clk 0:02:49]}  a4 {[%clk 0:02:48]} 13. Bxa4 {[%clk 0:02:48]}  Nxe4 {[%clk 0:02:47]} 14. Nxe4 {[%clk 0:02:27]}  Rxa4 {[%clk 0:02:47]} 15. Nf2 {[%clk 0:02:22]}  Rxe1+ {[%clk 0:02:46]} 16. Qxe1 {[%clk 0:02:22]}  Bf5 {[%clk 0:02:40]} 17. c3 {[%clk 0:02:19]}  h5 {[%clk 0:02:27]} 18. Be3 {[%clk 0:02:18]}  Be6 {[%clk 0:02:23]} 19. Qd1 {[%clk 0:02:09]}  Qa8 {[%clk 0:02:16]} 20. a3 {[%clk 0:02:07]}  Ne7 {[%clk 0:02:02]} 21. Nd3 {[%clk 0:01:51]}  Nf5 {[%clk 0:01:41]} 22. Bf2 {[%clk 0:01:51]}  Re4 {[%clk 0:01:34]} 23. Nd2 {[%clk 0:01:45]}  Ra4 {[%clk 0:01:33]} 24. Qf3 {[%clk 0:01:41]}  b6 {[%clk 0:01:26]} 25. Qxa8+ {[%clk 0:01:34]}  Rxa8 {[%clk 0:01:27]} 26. Re1 {[%clk 0:01:34]}  Kf8 {[%clk 0:01:24]} 27. Ne4 {[%clk 0:01:34]}  Re8 {[%clk 0:01:09]} 28. Nb4 {[%clk 0:01:30]}  c5 {[%clk 0:01:00]} 29. Na6 {[%clk 0:01:03]}  Bc4 {[%clk 0:00:53]} 30. Nc7 {[%clk 0:01:00]}  Re7 {[%clk 0:00:51]} 31. g4 {[%clk 0:01:00]}  d5 {[%clk 0:00:19]} 32. Nd2 {[%clk 0:00:27]}  Rxc7 {[%clk 0:00:17]} 33. gxf5 {[%clk 0:00:27]}  Bb5 {[%clk 0:00:14]} 34. fxg6 {[%clk 0:00:26]}  fxg6 {[%clk 0:00:15]} 35. Nf3 {[%clk 0:00:26]}  Re7 {[%clk 0:00:12]} 36. Ne5 {[%clk 0:00:22]}  Bxe5 {[%clk 0:00:10]} 37. fxe5 {[%clk 0:00:23]}  Kf7 {[%clk 0:00:09]} 38. Bh4 {[%clk 0:00:22]}  Re8 {[%clk 0:00:09]} 39. Kf2 {[%clk 0:00:19]}  Bd7 {[%clk 0:00:09]} 40. Kg3 {[%clk 0:00:19]}  Bf5 {[%clk 0:00:10]} 41. Bf6 {[%clk 0:00:16]}  Ke6 {[%clk 0:00:10]} 42. h4 {[%clk 0:00:09]}  Ra8 {[%clk 0:00:11]} 43. Kf4 {[%clk 0:00:04]}  Ra4+ {[%clk 0:00:12]} 44. Kg5 {[%clk 0:00:05]}  Rg4+ {[%clk 0:00:10]} 45. Kh6 {[%clk 0:00:05]}  Re4 {[%clk 0:00:08]} 46. Rd1 {[%clk 0:00:05]}  d4 {[%clk 0:00:08]} 47. cxd4 {[%clk 0:00:04]}  cxd4 {[%clk 0:00:09]} 48. Rc1 {[%clk 0:00:03]}  d3 {[%clk 0:00:10]} 49. Rc6+ {[%clk 0:00:04]}  Kd5 {[%clk 0:00:10]} 50. Rd6+ {[%clk 0:00:04]}  Kc4 {[%clk 0:00:11]} 51. b3+ {[%clk 0:00:02]}  Kc3 {[%clk 0:00:11]} 52. e6+ {[%clk 0:00:03]}  Kc2 {[%clk 0:00:10]} 53. e7 {[%clk 0:00:04]}  d2 {[%clk 0:00:10]} 54. Bg5 {[%clk 0:00:03]}  d1=Q {[%clk 0:00:10]} 55. Rxd1 {[%clk 0:00:04]}  Kxd1 {[%clk 0:00:11]} 56. Kg7 {[%clk 0:00:04]}  Kc2 {[%clk 0:00:10]} 57. Kf8 {[%clk 0:00:05]}  Bd7 {[%clk 0:00:10]} 58. b4 {[%clk 0:00:04]}  Kb3 {[%clk 0:00:10]} 59. Bc1 {[%clk 0:00:04]}  Rxh4 {[%clk 0:00:09]} 0-1


[Site "https://www.chess.com"]

[Event "Titled Tuesday Blitz December 13 Late 2022"]
[White "Droin, Augustin"]
[Black "Chigaev, Maksim"]
[WhiteFideId "45105987"]
[BlackFideId "4108116"]
[WhiteElo "2316"]
[BlackElo "2542"]
[Result "0-1"]
[Round "04"]
[TimeControl "180+1"]
[Date "2022.12.13"]
[WhiteClock "0:00:04"]
[BlackClock "0:00:10"]

1. e4 {[%clk 0:03:00]}  c5 {[%clk 0:03:00]} 2. Nf3 {[%clk 0:02:59]}  e6 {[%clk 0:03:00]} 3. d4 {[%clk 0:02:57]}  cxd4 {[%clk 0:03:01]} 4. Nxd4 {[%clk 0:02:57]}  Nf6 {[%clk 0:03:01]} 5. Nc3 {[%clk 0:02:57]}  Nc6 {[%clk 0:03:02]} 6. a3 {[%clk 0:02:57]}  Be7 {[%clk 0:03:00]} 7. Be3 {[%clk 0:02:46]}  O-O {[%clk 0:02:58]} 8. f4 {[%clk 0:02:46]}  d6 {[%clk 0:02:55]} 9. Qf3 {[%clk 0:02:44]}  e5 {[%clk 0:02:52]} 10. Nf5 {[%clk 0:02:41]}  Bxf5 {[%clk 0:02:47]} 11. exf5 {[%clk 0:02:42]}  d5 {[%clk 0:02:39]} 12. O-O-O {[%clk 0:02:41]}  e4 {[%clk 0:02:35]} 13. Qh3 {[%clk 0:02:33]}  d4 {[%clk 0:02:23]} 14. Nb5 {[%clk 0:02:06]}  Bc5 {[%clk 0:02:04]} 15. c3 {[%clk 0:02:02]}  dxe3 {[%clk 0:01:23]} 16. Rxd8 {[%clk 0:02:03]}  Rfxd8 {[%clk 0:01:23]} 17. b4 {[%clk 0:01:26]}  Bb6 {[%clk 0:01:18]} 18. c4 {[%clk 0:01:27]}  a6 {[%clk 0:01:09]} 19. Nc3 {[%clk 0:01:24]}  a5 {[%clk 0:01:07]} 20. Na4 {[%clk 0:01:09]}  axb4 {[%clk 0:00:52]} 21. Nxb6 {[%clk 0:01:08]}  Rxa3 {[%clk 0:00:52]} 22. Nd5 {[%clk 0:00:43]}  e2 {[%clk 0:00:39]} 23. Nxf6+ {[%clk 0:00:43]}  gxf6 {[%clk 0:00:38]} 24. Qg4+ {[%clk 0:00:43]}  Kf8 {[%clk 0:00:37]} 25. Bxe2 {[%clk 0:00:44]}  Ra1+ {[%clk 0:00:35]} 26. Kc2 {[%clk 0:00:25]}  Rxh1 {[%clk 0:00:35]} 27. c5 {[%clk 0:00:21]}  e3 {[%clk 0:00:32]} 28. Kb3 {[%clk 0:00:05]}  Ra1 {[%clk 0:00:26]} 29. Qh5 {[%clk 0:00:04]}  Rd4 {[%clk 0:00:21]} 30. Bc4 {[%clk 0:00:03]}  Ra3+ {[%clk 0:00:16]} 31. Kb2 {[%clk 0:00:03]}  Rxc4 {[%clk 0:00:16]} 32. Qxh7 {[%clk 0:00:04]}  Nd4 {[%clk 0:00:10]} 0-1


[Site "https://www.chess.com"]

[Event "Titled Tuesday Blitz December 13 Late 2022"]
[White "Dudzinski, Pawel"]
[Black "Kamsky, Gata"]
[WhiteFideId "1117890"]
[BlackFideId "2000024"]
[WhiteElo "2099"]
[BlackElo "2666"]
[Result "0-1"]
[Round "04"]
[TimeControl "180+1"]
[Date "2022.12.14"]
[WhiteClock "0:00:00"]
[BlackClock "0:01:02"]

1. e4 {[%clk 0:03:00]}  e5 {[%clk 0:02:57]} 2. Nc3 {[%clk 0:03:00]}  Nf6 {[%clk 0:02:56]} 3. g3 {[%clk 0:03:00]}  Bc5 {[%clk 0:02:55]} 4. Bg2 {[%clk 0:02:59]}  d6 {[%clk 0:02:55]} 5. Nge2 {[%clk 0:02:56]}  h5 {[%clk 0:02:54]} 6. h3 {[%clk 0:02:56]}  Nc6 {[%clk 0:02:52]} 7. Na4 {[%clk 0:02:55]}  Bb6 {[%clk 0:02:49]} 8. Nxb6 {[%clk 0:02:55]}  axb6 {[%clk 0:02:47]} 9. d4 {[%clk 0:02:55]}  exd4 {[%clk 0:02:30]} 10. Nxd4 {[%clk 0:02:56]}  Nxd4 {[%clk 0:02:30]} 11. Qxd4 {[%clk 0:02:57]}  Qe7 {[%clk 0:02:27]} 12. c4 {[%clk 0:02:48]}  Qe5 {[%clk 0:02:27]} 13. Qxe5+ {[%clk 0:02:17]}  dxe5 {[%clk 0:02:26]} 14. Be3 {[%clk 0:01:51]}  Be6 {[%clk 0:02:24]} 15. b3 {[%clk 0:01:41]}  Nd7 {[%clk 0:02:24]} 16. a4 {[%clk 0:01:34]}  f6 {[%clk 0:02:19]} 17. O-O-O {[%clk 0:01:30]}  h4 {[%clk 0:02:15]} 18. g4 {[%clk 0:01:28]}  g5 {[%clk 0:02:14]} 19. Kc2 {[%clk 0:01:04]}  Ke7 {[%clk 0:02:13]} 20. Rd2 {[%clk 0:01:01]}  c5 {[%clk 0:02:04]} 21. Rhd1 {[%clk 0:00:46]}  Nb8 {[%clk 0:02:01]} 22. Bf1 {[%clk 0:00:23]}  Nc6 {[%clk 0:02:00]} 23. Kb2 {[%clk 0:00:20]}  Nd4 {[%clk 0:01:58]} 24. Bxd4 {[%clk 0:00:19]}  exd4 {[%clk 0:01:48]} 25. f4 {[%clk 0:00:18]}  gxf4 {[%clk 0:01:43]} 26. Rf2 {[%clk 0:00:19]}  Kd6 {[%clk 0:01:37]} 27. Rxf4 {[%clk 0:00:19]}  Ke5 {[%clk 0:01:38]} 28. Rf2 {[%clk 0:00:19]}  Rh6 {[%clk 0:01:29]} 29. Bd3 {[%clk 0:00:19]}  Rg8 {[%clk 0:01:22]} 30. Rdf1 {[%clk 0:00:19]}  Bd7 {[%clk 0:01:18]} 31. Rf3 {[%clk 0:00:17]}  Rg5 {[%clk 0:01:17]} 32. R3f2 {[%clk 0:00:16]}  Bc6 {[%clk 0:01:16]} 33. Rf5+ {[%clk 0:00:15]}  Ke6 {[%clk 0:01:13]} 34. Rxg5 {[%clk 0:00:13]}  fxg5 {[%clk 0:01:13]} 35. Rf5 {[%clk 0:00:14]}  Rf6 {[%clk 0:01:11]} 36. Rxg5 {[%clk 0:00:10]}  Rf3 {[%clk 0:01:09]} 37. Bb1 {[%clk 0:00:06]}  Rxh3 {[%clk 0:01:08]} 38. Rg6+ {[%clk 0:00:06]}  Ke5 {[%clk 0:01:08]} 39. g5 {[%clk 0:00:05]}  Rg3 {[%clk 0:01:07]} 40. Rh6 {[%clk 0:00:04]}  h3 {[%clk 0:01:07]} 41. g6 {[%clk 0:00:04]}  Rg2+ {[%clk 0:01:04]} 42. Ka3 {[%clk 0:00:04]}  h2 {[%clk 0:01:04]} 43. g7 {[%clk 0:00:00]}  Rxg7 {[%clk 0:01:02]} 0-1


[Site "https://www.chess.com"]

[Event "Titled Tuesday Blitz December 13 Late 2022"]
[White "Eisa Mohmood, Alkhoori"]
[Black "Figorito, Nick"]
[WhiteFideId "9316116"]
[BlackFideId "30923689"]
[WhiteElo "1245"]
[BlackElo "2420"]
[Result "0-1"]
[Round "04"]
[TimeControl "180+1"]
[Date "2022.12.14"]
[WhiteClock "0:00:34"]
[BlackClock "0:01:15"]

1. e4 {[%clk 0:03:00]}  e6 {[%clk 0:03:00]} 2. d4 {[%clk 0:03:00]}  d5 {[%clk 0:03:01]} 3. Nd2 {[%clk 0:02:59]}  Nf6 {[%clk 0:03:01]} 4. e5 {[%clk 0:03:00]}  Nfd7 {[%clk 0:03:01]} 5. Bd3 {[%clk 0:02:59]}  c5 {[%clk 0:03:02]} 6. c3 {[%clk 0:03:00]}  Nc6 {[%clk 0:03:03]} 7. Ngf3 {[%clk 0:03:00]}  cxd4 {[%clk 0:03:04]} 8. cxd4 {[%clk 0:03:01]}  Be7 {[%clk 0:03:03]} 9. O-O {[%clk 0:03:00]}  a5 {[%clk 0:03:04]} 10. Re1 {[%clk 0:02:52]}  g5 {[%clk 0:03:04]} 11. h3 {[%clk 0:02:45]}  h5 {[%clk 0:03:04]} 12. Nb3 {[%clk 0:02:31]}  a4 {[%clk 0:02:52]} 13. Nc5 {[%clk 0:02:31]}  Nxc5 {[%clk 0:02:43]} 14. dxc5 {[%clk 0:02:31]}  g4 {[%clk 0:02:43]} 15. hxg4 {[%clk 0:02:30]}  hxg4 {[%clk 0:02:44]} 16. Nh2 {[%clk 0:02:31]}  g3 {[%clk 0:02:40]} 17. fxg3 {[%clk 0:02:24]}  Bxc5+ {[%clk 0:02:40]} 18. Be3 {[%clk 0:02:24]}  Bxe3+ {[%clk 0:02:19]} 19. Rxe3 {[%clk 0:02:24]}  Rxh2 {[%clk 0:02:19]} 20. Kxh2 {[%clk 0:02:23]}  Qg5 {[%clk 0:02:15]} 21. Qc1 {[%clk 0:01:42]}  Nxe5 {[%clk 0:01:56]} 22. Rxe5 {[%clk 0:01:24]}  Qxe5 {[%clk 0:01:53]} 23. Bb5+ {[%clk 0:01:23]}  Bd7 {[%clk 0:01:50]} 24. Qf1 {[%clk 0:01:02]}  Qh8+ {[%clk 0:01:30]} 25. Kg1 {[%clk 0:01:01]}  Qd4+ {[%clk 0:01:31]} 26. Kh2 {[%clk 0:01:01]}  Ke7 {[%clk 0:01:30]} 27. g4 {[%clk 0:00:38]}  Rh8+ {[%clk 0:01:15]} 28. Kg3 {[%clk 0:00:34]}  Qe3+ {[%clk 0:01:15]} 0-1


[Site "https://www.chess.com"]

[Event "Titled Tuesday Blitz December 13 Late 2022"]
[White "Fedoseev, Vladimir"]
[Black "Mendez Fortes, Eduardo Jesus"]
[WhiteFideId "24130737"]
[BlackFideId "3502376"]
[WhiteElo "2733"]
[BlackElo "2307"]
[Result "1-0"]
[Round "04"]
[TimeControl "180+1"]
[Date "2022.12.13"]
[WhiteClock "0:02:08"]
[BlackClock "0:01:24"]

1. e4 {[%clk 0:03:00]}  e5 {[%clk 0:02:59]} 2. Nf3 {[%clk 0:03:01]}  Nc6 {[%clk 0:02:59]} 3. Bb5 {[%clk 0:03:01]}  Nf6 {[%clk 0:02:59]} 4. d3 {[%clk 0:03:02]}  Bc5 {[%clk 0:02:58]} 5. Bxc6 {[%clk 0:03:02]}  dxc6 {[%clk 0:02:59]} 6. Nbd2 {[%clk 0:03:02]}  Nd7 {[%clk 0:02:59]} 7. O-O {[%clk 0:02:59]}  Qe7 {[%clk 0:02:58]} 8. c3 {[%clk 0:02:58]}  Bd6 {[%clk 0:02:57]} 9. d4 {[%clk 0:02:58]}  O-O {[%clk 0:02:52]} 10. Re1 {[%clk 0:02:56]}  f6 {[%clk 0:02:52]} 11. Nc4 {[%clk 0:02:55]}  Rd8 {[%clk 0:02:49]} 12. Qb3 {[%clk 0:02:54]}  Kh8 {[%clk 0:02:48]} 13. Be3 {[%clk 0:02:49]}  Nb6 {[%clk 0:02:45]} 14. dxe5 {[%clk 0:02:49]}  Nxc4 {[%clk 0:02:37]} 15. exf6 {[%clk 0:02:43]}  Qxf6 {[%clk 0:02:12]} 16. Bg5 {[%clk 0:02:37]}  Qg6 {[%clk 0:02:06]} 17. Bxd8 {[%clk 0:02:34]}  Bh3 {[%clk 0:02:06]} 18. Nh4 {[%clk 0:02:35]}  Qg4 {[%clk 0:02:00]} 19. Qxc4 {[%clk 0:02:23]}  Rxd8 {[%clk 0:01:58]} 20. Re3 {[%clk 0:02:23]}  Qxh4 {[%clk 0:01:49]} 21. Rxh3 {[%clk 0:02:23]}  Qg4 {[%clk 0:01:50]} 22. Rf3 {[%clk 0:02:21]}  Re8 {[%clk 0:01:49]} 23. Re1 {[%clk 0:02:20]}  h6 {[%clk 0:01:46]} 24. h3 {[%clk 0:02:20]}  Qg5 {[%clk 0:01:45]} 25. g3 {[%clk 0:02:13]}  a5 {[%clk 0:01:36]} 26. Kg2 {[%clk 0:02:12]}  Ra8 {[%clk 0:01:29]} 27. Rf5 {[%clk 0:02:11]}  Qe7 {[%clk 0:01:29]} 28. Qf7 {[%clk 0:02:10]}  Qd8 {[%clk 0:01:27]} 29. Rd1 {[%clk 0:02:10]}  Qc8 {[%clk 0:01:23]} 30. e5 {[%clk 0:02:09]}  Bc5 {[%clk 0:01:24]} 31. Rd7 {[%clk 0:02:08]} 1-0


[Site "https://www.chess.com"]

[Event "Titled Tuesday Blitz December 13 Late 2022"]
[White "Fernandez Siles, Luis"]
[Black "De VJunior, Liduino Furtado"]
[WhiteFideId "2209420"]
[BlackFideId "2109913"]
[WhiteElo "2186"]
[BlackElo "2050"]
[Result "1-0"]
[Round "04"]
[TimeControl "180+1"]
[Date "2022.12.14"]
[WhiteClock "0:00:49"]
[BlackClock "0:01:17"]

1. d4 {[%clk 0:03:00]}  Nf6 {[%clk 0:02:58]} 2. c4 {[%clk 0:03:00]}  e5 {[%clk 0:02:57]} 3. dxe5 {[%clk 0:02:59]}  Ng4 {[%clk 0:02:57]} 4. e3 {[%clk 0:02:59]}  Nxe5 {[%clk 0:02:57]} 5. Nh3 {[%clk 0:02:59]}  d6 {[%clk 0:02:56]} 6. Nf4 {[%clk 0:02:59]}  Nbc6 {[%clk 0:02:55]} 7. Nc3 {[%clk 0:02:58]}  Be6 {[%clk 0:02:55]} 8. b3 {[%clk 0:02:57]}  Be7 {[%clk 0:02:54]} 9. Bb2 {[%clk 0:02:57]}  Bf6 {[%clk 0:02:54]} 10. Be2 {[%clk 0:02:46]}  O-O {[%clk 0:02:54]} 11. O-O {[%clk 0:02:42]}  Ne7 {[%clk 0:02:45]} 12. Nxe6 {[%clk 0:02:40]}  fxe6 {[%clk 0:02:45]} 13. f4 {[%clk 0:02:40]}  N5c6 {[%clk 0:02:42]} 14. Bg4 {[%clk 0:02:25]}  e5 {[%clk 0:02:41]} 15. Ne4 {[%clk 0:02:22]}  Ng6 {[%clk 0:02:31]} 16. Be6+ {[%clk 0:02:09]}  Kh8 {[%clk 0:02:29]} 17. f5 {[%clk 0:02:01]}  Nge7 {[%clk 0:02:26]} 18. Rf3 {[%clk 0:01:58]}  g6 {[%clk 0:02:02]} 19. fxg6 {[%clk 0:01:53]}  Nxg6 {[%clk 0:02:02]} 20. Rh3 {[%clk 0:01:39]}  Qe7 {[%clk 0:01:53]} 21. Bf5 {[%clk 0:01:39]}  Bg5 {[%clk 0:01:50]} 22. Bxg6 {[%clk 0:01:34]}  h6 {[%clk 0:01:44]} 23. Qh5 {[%clk 0:01:29]}  Kg7 {[%clk 0:01:34]} 24. Nxg5 {[%clk 0:01:17]}  Qxg5 {[%clk 0:01:35]} 25. Qxg5 {[%clk 0:01:17]}  hxg5 {[%clk 0:01:36]} 26. Be4 {[%clk 0:01:16]}  Rh8 {[%clk 0:01:31]} 27. Rxh8 {[%clk 0:01:13]}  Rxh8 {[%clk 0:01:31]} 28. Bxc6 {[%clk 0:01:10]}  bxc6 {[%clk 0:01:32]} 29. h3 {[%clk 0:01:07]}  Kf6 {[%clk 0:01:30]} 30. Kf2 {[%clk 0:01:05]}  Kf5 {[%clk 0:01:28]} 31. Kf3 {[%clk 0:01:00]}  Rf8 {[%clk 0:01:25]} 32. Rf1 {[%clk 0:00:53]}  Ke6+ {[%clk 0:01:25]} 33. Ke2 {[%clk 0:00:53]}  Rg8 {[%clk 0:01:22]} 34. e4 {[%clk 0:00:51]}  d5 {[%clk 0:01:21]} 35. cxd5+ {[%clk 0:00:50]}  cxd5 {[%clk 0:01:21]} 36. exd5+ {[%clk 0:00:51]}  Kxd5 {[%clk 0:01:22]} 37. Rd1+ {[%clk 0:00:51]}  Ke4 {[%clk 0:01:20]} 38. Rc1 {[%clk 0:00:51]}  g4 {[%clk 0:01:20]} 39. Rc4+ {[%clk 0:00:50]}  Kf5 {[%clk 0:01:19]} 40. Rxg4 {[%clk 0:00:50]}  Rc8 {[%clk 0:01:17]} 41. Rc4 {[%clk 0:00:49]} 1-0


[Site "https://www.chess.com"]